Cogmind - Beta 11.1 --- EXPLORER MODE // 2022.06.01 @ 01:56:05 // Winter2019/RPGLIKE Player: Grimbling Result: Destroyed by P-80 Master with Gamma Rifle Performance ------------- Evolutions (9) 4500 Regions Visited (23) 4600 Robots Destroyed (456) 2280 Value Destroyed (29303) 29303 Prototype IDs (39) 780 Alien Tech Used (4) 800 Bonus (26855) 26855 TOTAL SCORE: 69118 Bonus ------- High Alert Combat Kills 3810 Follower Combat Kills 723 Entered Garrisons 400 Used RIF Installer 1000 Met Warlord at Base 500 MAIN.C Attacked Warlord 500 Found Hidden Lab 3000 Hacked Protovariant 500 Met Warlord at Research 2000 Scanned by Researcher 500 Pursued by Intercept 2000 Acquired SGEMP 2000 Met MAIN.C 5000 Destroyed MAIN.C Shell 5000 Friendly Fire -78 Cogmind --------- Core Integrity 0/1000 Matter 4/900 Energy 718/1000 System Corruption 20% Temperature Cool (32) Movement Walking (190) Ox1 Location -1/Command Parts ------- > --- POWER (3) -------- Quantum Reactor Quantum Reactor Quantum Reactor > --- PROPULSION (4) --- Centrium Leg Centrium Leg Centrium Leg Centrium Leg > --- UTILITY (11) ----- Advanced Terrain Scanner Advanced Target Analyzer Advanced Weapon Cycler Experimental Powered Armor Improved Shock Absorption System Experimental Hardlight Generator Antimissile System Relay Coupler [NC] (102) LC Capacitor > --- WEAPON (4) ------- Potential Cannon Hypervelocity Railgun Hypervelocity Multirail > --- INVENTORY (7) ---- Hypervelocity Railgun Compact Linear Accelerator Peak State ------------ > --- POWER ------------ Quantum Reactor Quantum Reactor Quantum Reactor > --- PROPULSION ------- Centrium Leg Centrium Leg Centrium Leg Centrium Leg > --- UTILITY ---------- Advanced Terrain Scanner Advanced Target Analyzer Advanced Weapon Cycler Experimental Powered Armor Improved Shock Absorption System Experimental Hardlight Generator Antimissile System Relay Coupler [NC] LC Capacitor > --- WEAPON ----------- Potential Cannon Hypervelocity Multirail Compact Linear Accelerator > --- INVENTORY -------- Protomatter Hypervelocity Railgun Hypervelocity Railgun Vortex Catalyst Activator [Rating: 206] Favorites ----------- Power Quantum Reactor Engine Angular Momentum Engine Power Core Neutrino Core Reactor Quantum Reactor Propulsion Centrium Leg Leg Centrium Leg Utility Advanced Terrain Scanner Device Advanced Terrain Scanner Processor Improved Targeting Computer Hackware Relay Coupler [NC] Protection Experimental Powered Armor Artifact LC Capacitor Weapon Hypervelocity Railgun Energy Gun Heavy Tesla Rifle Energy Cannon Potential Cannon Ballistic Gun Hypervelocity Railgun Ballistic Cannon Compact Linear Accelerator Launcher Vortex Catalyst Activator Slashing Weapon Segregator Build | -11 -10 -9 -9 -8 -7 -6 -6 -5 -5 -5 -5 -4 -4 -4 -4 -4 -3 -3 -3 -2 -2 -1 -1 ------- Run | Scr Mat Mat Sto Mat Fac Fac Ext Fac Upp Upp War Pro Fac Gar Arm Lab Res Tes Gar Res Qua Acc Com Slots Evolved 18 | 5 . . 3 2 . 1 . . . . . . 1 . 1 1 . 1 . 1 . 1 1 Power 2 | . . . . . . 1 . . . . . . . . . . . . . . . . 1 Propulsion 3 | 1 . . 1 . . . . . . . . . . . 1 . . . . . . . . Utility 10 | 3 . . 2 1 . . . . . . . . 1 . . . . 1 . 1 . 1 . Weapon 3 | 1 . . . 1 . . . . . . . . . . . 1 . . . . . . . Parts Attached 233 | 10 2 5 16 24 3 9 5 2 . 1 . 2 5 6 18 19 4 36 7 7 16 11 25 Power 23 | 1 . 1 1 3 1 3 3 1 . . . . . . 4 . . 1 . . 2 . 2 Engine 12 | 1 . 1 1 3 1 2 3 . . . . . . . . . . . . . . . . Core 2 | . . . . . . . . 1 . . . . . . 1 . . . . . . . . Reactor 9 | . . . . . . 1 . . . . . . . . 3 . . 1 . . 2 . 2 Propulsion 26 | 2 . . 2 8 . . . 1 . . . . . 2 5 . . 4 . 1 . . 1 Treads . | . . . . . . . . . . . . . . . . . . . . . . . . Leg 26 | 2 . . 2 8 . . . 1 . . . . . 2 5 . . 4 . 1 . . 1 Wheel . | . . . . . . . . . . . . . . . . . . . . . . . . Hover . | . . . . . . . . . . . . . . . . . . . . . . . . Flight . | . . . . . . . . . . . . . . . . . . . . . . . . Utility 77 | 6 . 2 3 7 1 1 2 . . . . . 4 1 4 4 2 15 5 1 9 7 3 Device 42 | 3 . 1 1 4 1 1 1 . . . . . 2 1 2 1 1 7 1 1 6 5 3 Storage . | . . . . . . . . . . . . . . . . . . . . . . . . Processor 9 | 1 . . 1 1 . . . . . . . . 1 . 1 . 1 1 . . . 2 . Hackware 1 | . . . . . . . . . . . . . . . . . . . 1 . . . . Protection 24 | 2 . 1 1 2 . . 1 . . . . . 1 . 1 2 . 7 3 . 3 . . Artifact 1 | . . . . . . . . . . . . . . . . 1 . . . . . . . Weapon 107 | 1 2 2 10 6 1 5 . . . 1 . 2 1 3 5 15 2 16 2 5 5 4 19 Energy Gun 3 | . . . . . . . . . . . . . . . . 2 . 1 . . . . . Energy Cannon 13 | . . . 2 . . . . . . . . 1 . 1 . 2 . . . 1 . . 6 Ballistic Gun 79 | 1 2 2 8 6 1 4 . . . 1 . 1 1 2 4 8 2 13 1 4 5 3 10 Ballistic Cannon 6 | . . . . . . 1 . . . . . . . . 1 1 . 1 1 . . 1 . Launcher 5 | . . . . . . . . . . . . . . . . 2 . 1 . . . . 2 Special Weapon . | . . . . . . . . . . . . . . . . . . . . . . . . Impact Weapon . | . . . . . . . . . . . . . . . . . . . . . . . . Slashing Weapon 1 | . . . . . . . . . . . . . . . . . . . . . . . 1 Piercing Weapon . | . . . . . . . . . . . . . . . . . . . . . . . . Special Melee Weapon . | . . . . . . . . . . . . . . . . . . . . . . . . Unidentified Prototypes 36 | . . . 1 1 1 3 . . . . . 1 . . . 11 . 12 . 1 2 3 . Corrupted Parts 1 | . . . . . . . . . . . . . . . . . . 1 . . . . . System Corruption 3 | . . . . . . . . . . . . . . . . . . 3 . . . . . Parts Lost 1 | . . . . . . . 1 . . . . . . . . . . . . . . . . Power . | . . . . . . . . . . . . . . . . . . . . . . . . Propulsion . | . . . . . . . . . . . . . . . . . . . . . . . . Utility 1 | . . . . . . . 1 . . . . . . . . . . . . . . . . Weapon . | . . . . . . . . . . . . . . . . . . . . . . . . Highest Loss Streak 1 | . . . . . . . 1 . . . . . . . . . . . . . . . . To Critical Strikes . | . . . . . . . . . . . . . . . . . . . . . . . . Average Slot Usage (%) 93 | . 91 100 96 99 100 98 99 100 100 100 99 77 93 96 96 97 86 87 88 89 89 89 89 Engine 3 | . 11 11 9 7 7 5 8 10 6 6 6 6 6 6 1 . . . . . . . . Reactor 5 | . . . . . . 5 3 . . . . . . . 7 11 11 9 10 10 10 9 10 Leg 20 | . 22 22 26 21 21 20 20 20 20 20 20 20 18 17 20 22 22 21 21 20 20 19 18 Device 24 | . 33 33 29 28 28 26 28 26 26 26 25 20 27 31 29 25 16 15 14 19 19 20 22 Processor 7 | . . . . 11 14 13 13 13 13 13 13 13 12 9 8 10 5 5 5 5 5 5 4 Hackware 1 | . . . . . . . . . . . . . . . . . . . 3 5 5 4 4 Protection 6 | . 11 11 9 7 7 6 4 6 6 6 5 . 4 6 5 6 5 6 6 5 5 4 4 Artifact 1 | . . . . . . . . . . . . . . . . . 5 5 5 5 5 4 4 Ballistic Gun 17 | . 14 22 17 21 21 19 20 20 20 20 19 10 17 17 12 14 19 18 14 14 14 14 12 Ballistic Cannon 1 | . . . . . . . . . . . . . . . 3 . . 2 5 5 5 4 3 Naked Turns . | . . . . . . . . . . . . . . . . . . . . . . . . Heaviest Build 146 | 10 12 19 21 33 30 45 52 54 54 54 54 40 61 61 78 91 90 107 107 101 106 109 146 Greatest Support 140 | 25 25 25 38 59 59 64 64 64 62 62 62 62 62 66 140 140 140 140 140 140 140 140 140 Greatest Overweight (x) 1 | 1 . . . . . . . . . . . . . . 1 . . 1 . . . . 1 Average Overweight (x) . | . . . . . . . . . . . . . . . . . . . . . . . . Largest Inventory Capacity 7 | . . 3 3 4 5 5 5 6 6 6 7 7 7 7 7 7 7 7 7 7 7 7 7 Average Capacity 5 | . . 2 3 3 4 5 5 5 6 6 6 7 7 7 7 7 7 7 7 7 7 7 7 Most Carried 7 | . . 3 3 4 5 5 5 4 4 5 7 7 7 7 7 7 7 7 7 7 7 7 7 Average Carried 5 | . . . 2 3 3 4 2 3 4 4 5 6 6 6 6 6 7 6 6 6 7 6 5 Final Capacity 7 | . . 3 3 4 5 5 5 6 6 6 7 7 7 7 7 7 7 7 7 7 7 7 7 Final Carried 7 | . . 2 3 3 5 3 3 4 4 5 7 7 6 7 7 7 7 7 7 7 7 7 2 Class Distribution -------------------- 42% | Hacker-Skirmisher 24% | Hacker-Tank 17% | Hacker-Gunner 6% | Scavenger-Skirmisher 4% | Hacker-Mutant Dominant Class ---------------- Hacker-Mutant | -10/Materials Hacker-Skirmisher | -9/Materials Hacker-Skirmisher | -9/Storage Scavenger-Skirmisher | -8/Materials Hacker-Skirmisher | -7/Factory Hacker-Skirmisher | -6/Factory Hacker-Skirmisher | -6/Extension Hacker-Skirmisher | -5/Factory Hacker-Skirmisher | -5/Upper Caves Hacker-Skirmisher | -5/Upper Caves Hacker-Skirmisher | -5/Warlord Hacker-Skirmisher | -4/Proximity Caves Hacker-Skirmisher | -4/Factory Hacker-Tank | -4/Garrison Hacker-Gunner | -4/Armory Hacker-Gunner | -4/Lab Hacker-Skirmisher | -3/Research Hacker-Tank | -3/Testing Hacker-Tank | -3/Garrison Hacker-Gunner | -2/Research Hacker-Gunner | -2/Quarantine Hacker-Gunner | -1/Access Hacker-Tank | -1/Command Resources | -11 -10 -9 -9 -8 -7 -6 -6 -5 -5 -5 -5 -4 -4 -4 -4 -4 -3 -3 -3 -2 -2 -1 -1 ----------- Run | Scr Mat Mat Sto Mat Fac Fac Ext Fac Upp Upp War Pro Fac Gar Arm Lab Res Tes Gar Res Qua Acc Com Matter Collected 20480 | 398 89 156 816 1112 273 543 925 425 12 94 . 86 20 477 1739 498 955 2646 1587 1494 1311 1859 2965 Remotely 4419 | 10 89 135 816 1097 273 543 925 425 12 94 . . . . . . . . . . . . . Salvage Created 23640 | 105 350 135 1087 1864 277 452 502 583 . 257 . 36 . 600 1753 126 905 2743 2039 2108 1390 2664 3664 Parts 1355 | 11 20 17 80 106 18 24 45 40 . 11 . 4 . 36 122 7 61 201 100 80 64 105 203 Haulers Intercepted 26 | . 2 . 6 5 2 1 . 1 . . . . . . . . 1 2 . 1 . 5 . Recyclers Shooed 8 | . . 1 1 . . . 1 . . . . . . . . . 2 1 . . . 1 1 Parts Field Recycled . | . . . . . . . . . . . . . . . . . . . . . . . . Retrieved Matter . | . . . . . . . . . . . . . . . . . . . . . . . . Parts Self-Destructed . | . . . . . . . . . . . . . . . . . . . . . . . . Prevented . | . . . . . . . . . . . . . . . . . . . . . . . . Kills | -11 -10 -9 -9 -8 -7 -6 -6 -5 -5 -5 -5 -4 -4 -4 -4 -4 -3 -3 -3 -2 -2 -1 -1 ------- Run | Scr Mat Mat Sto Mat Fac Fac Ext Fac Upp Upp War Pro Fac Gar Arm Lab Res Tes Gar Res Qua Acc Com Combat Hostiles Destroyed 362 | . 6 6 20 26 6 8 17 13 . 6 . 2 . 15 38 1 11 39 29 24 17 22 56 Guns 312 | . 6 6 19 26 6 8 17 13 . 6 . . . 15 29 1 11 34 27 21 13 16 38 Cannons 39 | . . . 1 . . . . . . . . 2 . . 9 . . 4 2 2 3 6 10 AOE 6 | . . . . . . . . . . . . . . . . . . . . . . . 6 Classes Destroyed 27 | 2 2 3 3 1 1 1 2 . . . . . . . . . . 4 1 2 . 2 3 Worker 10 | . . 1 . 5 . . . . . . . . . . . . . 2 . . . 2 . Builder 5 | . . . 2 . . . . . . . . . . . . . . 3 . . . . . Tunneler 3 | 2 . . . 1 . . . . . . . . . . . . . . . . . . . Hauler 26 | . 2 . 6 5 2 1 . 1 . . . . . . . . 1 2 . 1 . 5 . Recycler 8 | 1 . . 1 1 . . . . . . . . . . . . 2 . . . . 2 1 Carrier 6 | . . . . . . . . . . . . . . . . . . . . 1 . . 5 Mechanic 1 | . . . . . . . . . . . . . . . . . . . . . . . 1 Operator 8 | . . . 1 1 . . . 1 . . . . . . 2 . . 1 . 2 . . . Watcher 25 | . . . 2 4 1 . 3 . . . . . . . 3 . 1 2 1 2 2 1 3 Swarmer 52 | . . 3 . . 3 . 6 6 . 4 . . . 6 8 . 3 3 6 4 . . . Cutter 1 | . . . . . . . . . . . . . . . . . . . . . . . 1 Saboteur 2 | . . . . . . . . . . . . . . . . . . . 1 . . . 1 Grunt 93 | . 6 . 9 14 1 5 3 2 . 1 . . . 6 13 . 1 1 9 2 6 3 11 Brawler 9 | . . . . . . . 1 . . . . . . . . . . . 2 . . . 6 Duelist 3 | . . . . . . . 1 . . . . . . . . . . . 1 . . . 1 Protector 3 | . . . . . . . . . . . . . . . . . . 1 . . . . 2 Researcher 2 | . . . . . . . . . . . . . . . . . . 2 . . . . . Sentry 56 | . . 3 11 9 1 1 4 3 . 1 . . . 1 8 . 2 1 5 1 . 2 3 Demolisher 1 | . . . . . . . . . . . . . . . . . . . . . . . 1 Hunter 32 | . . . . 3 . 1 . 2 . . . 2 . . . . . 4 . 6 . 7 7 Programmer 64 | . . . . . 1 . . . . . . . . 1 9 . 5 19 5 . 2 3 19 Heavy 1 | . . . . . . . . . . . . . . . . . . . . . . 1 . Q-Series 2 | . . . . . . . . . . . . . . . . . . . . . . 2 . Behemoth 4 | . . . . . . 1 2 . . . . . . 1 . . . . . . . . . Quarantine Guard 2 | . . . . . . . . . . . . . . . . . . . . . 2 . . M Guard 1 | . . . . . . . . . . . . . . . . . . . . . . . 1 Tracker 11 | . . . . . . . . . . . . . . . . . . 3 . 3 3 2 . Combat Programmer 15 | . . . . . . . . . . . . . . . . . . 4 . 3 4 2 2 Striker 6 | . . . . . . . . . . . . . . . . . . 2 . 4 . . . Executioner 1 | . . . . . . . . . . . . . . . . . . . . 1 . . . Alpha 7 1 | . . . . . . . . . . . . . . . . . . 1 . . . . . Best Kill Streak 19 | 2 2 4 13 6 3 2 3 4 . 3 . 2 . 3 6 1 5 6 5 8 3 6 19 Combat Bots Only 18 | . 2 3 5 4 3 2 3 4 . 3 . 2 . 3 5 1 3 6 5 8 3 4 18 Max Kills in Single Turn 3 | 1 1 1 2 2 2 1 2 2 . 2 . 1 . 2 2 1 1 2 2 2 1 2 3 Gunslinging 1 | . . . 1 . 1 . 1 1 . 1 . . . 1 1 . . 1 . . . . . Exploded 2 | . . . . . . . . . . . . . . . . . . . . . . . 2 Melee . | . . . . . . . . . . . . . . . . . . . . . . . . Uniques/NPCs Destroyed 2 | . . . . . . . . . . . . . . . . 1 . . . . . . 1 A5 (-4/Lab) MAIN.C Shell (-1/Command) Combat | -11 -10 -9 -9 -8 -7 -6 -6 -5 -5 -5 -5 -4 -4 -4 -4 -4 -3 -3 -3 -2 -2 -1 -1 -------- Run | Scr Mat Mat Sto Mat Fac Fac Ext Fac Upp Upp War Pro Fac Gar Arm Lab Res Tes Gar Res Qua Acc Com Damage Taken 16810 | . 352 148 610 517 252 1291 1370 478 . 129 110 389 . 580 552 812 234 2783 420 1076 1113 522 3072 Core 11833 | . 259 110 435 391 192 928 1036 327 . 92 87 315 . 398 368 575 175 2005 265 711 719 377 2068 Absorbed by Shields 6039 | . . . . . 95 . 196 . . . . . . 32 . . . 956 440 700 760 290 2570 Redirected to Core 10100 | . 156 81 348 309 154 809 841 277 . 80 76 237 . 344 321 557 147 1640 225 590 683 311 1914 Redirected to Shielding 39 | . 39 . . . . . . . . . . . . . . . . . . . . . . Regen/Repaired (Parts) 199 | . . . . . . . . . . . . . . . . 114 18 67 . . . . . Core Remaining (%) 91 | 100 89 . 97 100 84 . 95 . . . . 73 . . . 100 . . 100 . 72 . . Volleys Fired 1086 | 9 60 14 80 74 21 40 49 33 . 7 . 17 1 42 76 42 21 117 49 65 50 59 160 Largest 4 | 1 2 2 2 3 3 3 3 3 . 3 . 2 3 3 3 3 4 4 4 4 4 4 4 Hottest 320 | 20 40 50 93 81 84 90 90 90 . 90 . 80 95 118 146 120 155 200 200 270 200 200 320 Shots Fired 3238 | 9 63 28 158 218 63 120 146 99 . 21 . 18 3 127 219 115 78 393 184 246 185 221 524 Gun 2720 | 9 63 28 144 218 63 120 146 99 . 21 . 14 3 119 159 109 78 346 138 180 137 162 364 Cannon 508 | . . . 14 . . . . . . . . 4 . 8 60 3 . 47 46 66 48 59 153 Launcher 10 | . . . . . . . . . . . . . . . . 3 . . . . . . 7 Special . | . . . . . . . . . . . . . . . . . . . . . . . . Kinetic 3184 | 9 63 28 144 218 63 120 146 99 . 21 . 14 3 119 219 112 78 393 184 245 185 221 500 Thermal 32 | . . . 14 . . . . . . . . . . . . . . . . 1 . . 17 Explosive . | . . . . . . . . . . . . . . . . . . . . . . . . Electromagnetic . | . . . . . . . . . . . . . . . . . . . . . . . . Entropic 22 | . . . . . . . . . . . . 4 . 8 . 3 . . . . . . 7 Robot Hit Streak 100 | 5 23 21 36 29 13 54 63 29 . 32 . 8 2 64 61 51 23 64 34 42 55 30 100 Robot Miss Streak 3 | 1 2 1 2 2 2 2 2 1 . 1 . 1 1 2 1 1 2 3 2 3 2 3 2 Penetration Max 3 | . . . . 1 1 . . . . . . . . 1 1 1 1 3 1 2 1 2 2 Secondary Targets 30 | . . 1 3 5 1 1 4 3 . 2 . . . 3 2 . 1 4 . . . . . Max Gunslinging Chain 1 | . . 1 1 1 1 1 1 1 . 1 . . . 1 1 . 1 1 . . . . . Shots Hit Robots 2489 | 8 55 21 125 169 44 106 117 79 . 15 . 15 2 89 167 99 57 288 109 184 129 172 439 Core Hits 1190 | 6 23 11 54 76 15 28 36 31 . 9 . 3 . 32 71 39 22 171 62 90 70 97 244 Critical Kills 204 | . 1 . . 1 1 . . . . . . . . 1 21 . 14 35 26 23 11 22 48 Critical Parts Destroyed 392 | . . 2 1 1 . . 2 1 . 1 . . . 3 21 10 14 72 32 52 26 51 103 Critical Strikes 797 | . 1 2 1 2 2 . 2 1 . 1 . 1 . 4 51 18 28 124 73 101 55 88 242 Meltdown 3 | . . . . . . . . . . . . . . . . . . . . . . . 3 Destroy 760 | . 1 2 1 2 2 . 2 1 . 1 . . . 4 45 18 28 119 72 94 53 85 230 Blast 33 | . . . . . . . . . . . . . . . 6 . . 5 1 7 2 3 9 Sunder 1 | . . . . . . . . . . . . 1 . . . . . . . . . . . Melee Attacks . | . . . . . . . . . . . . . . . . . . . . . . . . Impact . | . . . . . . . . . . . . . . . . . . . . . . . . Slashing . | . . . . . . . . . . . . . . . . . . . . . . . . Piercing . | . . . . . . . . . . . . . . . . . . . . . . . . Sneak Attacks . | . . . . . . . . . . . . . . . . . . . . . . . . Combat Hostiles . | . . . . . . . . . . . . . . . . . . . . . . . . Follow-up Attacks . | . . . . . . . . . . . . . . . . . . . . . . . . Damage Inflicted 52323 | 80 451 460 2290 3191 1017 2415 2797 1799 . 358 . 498 50 2719 3269 627 878 4522 1576 3061 2528 3298 14439 Guns 33184 | 74 451 460 2145 3102 981 2297 2777 1799 . 358 . 204 50 2166 1780 627 878 3248 1002 1531 1354 1743 4157 Cannons 14739 | . . . 144 . . . . . . . . 294 . 553 1489 . . 1144 574 1525 1174 1551 6291 Explosions 4218 | . . . . 56 . 113 . . . . . . . . . . . 58 . . . . 3991 Melee . | . . . . . . . . . . . . . . . . . . . . . . . . Ramming 182 | 6 . . 1 33 36 5 20 . . . . . . . . . . 72 . 5 . 4 . Kinetic 44642 | 74 451 460 2145 3102 981 2297 2777 1799 . 358 . 204 50 2166 3269 627 878 4392 1576 3056 2528 3294 8158 Thermal 4600 | . . . 144 . . 113 . . . . . . . . . . . . . . . . 4343 Explosive 56 | . . . . 56 . . . . . . . . . . . . . . . . . . . Electromagnetic 58 | . . . . . . . . . . . . . . . . . . 58 . . . . . Impact . | . . . . . . . . . . . . . . . . . . . . . . . . Slashing . | . . . . . . . . . . . . . . . . . . . . . . . . Piercing . | . . . . . . . . . . . . . . . . . . . . . . . . Entropic 2785 | . . . . . . . . . . . . 294 . 553 . . . . . . . . 1938 Highest Corruption 34 | . . . . . 2 1 1 2 2 2 2 1 1 2 5 15 4 32 34 8 10 4 20 Average Corruption 10 | . . . . . 1 1 1 1 2 2 1 1 1 1 3 12 3 15 33 7 8 3 8 Corruption Purged . | . . . . . . . . . . . . . . . . . . . . . . . . Corruption Blocked 3 | . . . . . . . . . . . 2 . . . . . . . . 1 . . . Effects 408 | . . . . . 1 1 9 1 8 3 . 2 . 13 33 23 3 85 93 8 43 1 81 Message Errors 96 | . . . . . 1 . 3 . 1 1 . . . 5 6 6 2 17 26 1 5 1 21 Matter Fused 90 | . . . . . . . 2 1 2 . . 1 . 2 7 8 1 18 13 3 14 . 18 Heat Flow Errors 38 | . . . . . . . . . 2 1 . . . 1 6 2 . 9 6 1 5 . 5 Energy Discharges 45 | . . . . . . . . . 1 . . 1 . 1 2 2 . 11 10 2 4 . 11 Parts Rejected 8 | . . . . . . . 1 . . . . . . . . . . 3 1 . 2 . 1 Data Loss (minor) 47 | . . . . . . . 1 . 1 . . . . 3 10 1 . 9 11 1 4 . 6 Data Loss (major) 14 | . . . . . . 1 1 . 1 1 . . . . 1 . . 3 1 . 4 . 1 Misfires 12 | . . . . . . . . . . . . . . 1 . 1 . 1 7 . . . 2 Alerts 5 | . . . . . . . . . . . . . . . . . . 2 2 . . . 1 Weapon Failures 53 | . . . . . . . 1 . . . . . . . 1 3 . 12 16 . 5 . 15 Overload Shots . | . . . . . . . . . . . . . . . . . . . . . . . . Overflow Damage 804 | . . . . . . 33 . . . . . 24 . . 45 . . 37 52 2 32 26 553 Projectiles 557 | . . . . . . . . . . . . 24 . . 45 . . 1 52 2 32 26 375 Explosions 226 | . . . . . . 33 . . . . . . . . . . . 15 . . . . 178 Melee 21 | . . . . . . . . . . . . . . . . . . 21 . . . . . Knockbacks 85 | . . . . . . . . . . . . . . . 8 . . 12 5 21 5 11 23 Impact 1 | . . . . . . . . . . . . . . . . . . 1 . . . . . Kinetic 82 | . . . . . . . . . . . . . . . 8 . . 11 4 21 5 10 23 Secondary 2 | . . . . . . . . . . . . . . . . . . . 1 . . 1 . Self-Inflicted Damage 96 | . . . . 26 . . . . . . . . . . . . . 10 . . . . 60 Shots 3 | . . . . 1 . . . . . . . . . . . . . 1 . . . . 1 Rammed . | . . . . . . . . . . . . . . . . . . . . . . . . Targets Rammed 26 | 3 1 . 2 3 4 1 1 . . . . . . . . . . 8 . 2 . 1 . Kicked 26 | 3 1 . 2 3 4 1 1 . . . . . . . . . . 8 . 2 . 1 . Crushed . | . . . . . . . . . . . . . . . . . . . . . . . . Highest Temperature 253 | . 3 2 . . . . 11 2 118 203 . . . 192 253 154 . 129 231 86 172 12 171 Average Temperature 27 | . 3 2 . . . . 11 2 64 86 . . . 118 98 85 . 72 100 4 39 6 21 Received Heat Transfer 2504 | . 351 81 435 297 21 240 428 27 . 36 27 . . 141 135 . 12 24 58 6 3 3 179 Siege Activations . | . . . . . . . . . . . . . . . . . . . . . . . . Robots Corrupted . | . . . . . . . . . . . . . . . . . . . . . . . . Combat Hostiles . | . . . . . . . . . . . . . . . . . . . . . . . . Parts Fried 1 | . . . . . . . . . . . . . . . . . . 1 . . . . . Impact Corruptions 4 | . . . . . . . . . . . . . . . . . . 2 1 . . 1 . Robots Melted 3 | . . . . . . . . . . . . . . . . . . . . . . . 3 Combat Hostiles 2 | . . . . . . . . . . . . . . . . . . . . . . . 2 Parts Melted 13 | . . . . . . . . . . . . . . . 1 1 . 5 . . . . 6 Heat Transferred 2277 | . . . 259 . . 50 . . . . . . . . . . . . . . . . 1968 Parts Sabotaged 6 | . . . . . . . . . . . 4 . . . . . . . 2 . . . . Parts Stolen . | . . . . . . . . . . . . . . . . . . . . . . . . Parts Stripped . | . . . . . . . . . . . . . . . . . . . . . . . . Power Chain Reactions . | . . . . . . . . . . . . . . . . . . . . . . . . Missiles Intercepted 27 | . . . . . . . . . . . . . . . . . . . . . . . 27 Alert | -11 -10 -9 -9 -8 -7 -6 -6 -5 -5 -5 -5 -4 -4 -4 -4 -4 -3 -3 -3 -2 -2 -1 -1 ------- Run | Scr Mat Mat Sto Mat Fac Fac Ext Fac Upp Upp War Pro Fac Gar Arm Lab Res Tes Gar Res Qua Acc Com Peak Influence 1309 | 15 115 267 404 356 227 186 360 271 . . . . 27 609 798 . 335 404 1309 1117 601 383 715 Initial 552 | . 7 7 80 . 36 27 10 . . . . . 24 14 237 . . 27 228 552 471 120 168 Average 295 | 7 38 95 97 130 75 62 92 45 . . . . 7 329 357 . 156 162 923 879 335 223 519 Maximum Alert Level 4 | . . 1 2 1 1 . 1 1 . . . . . 2 3 . 1 2 4 4 2 1 3 Low Security (%) 50 | 100 100 87 82 73 95 100 85 93 . . . . 100 26 5 . 56 68 . . 22 40 1 Level 1 22 | . . 12 15 26 4 . 14 6 . . . . . 32 68 . 43 28 10 . 41 59 3 Level 2 15 | . . . 1 . . . . . . . . . . 41 14 . . 2 15 19 36 . 82 Level 3 8 | . . . . . . . . . . . . . . . 11 . . . 26 77 . . 12 Level 4 3 | . . . . . . . . . . . . . . . . . . . 46 2 . . . Level 5 . | . . . . . . . . . . . . . . . . . . . . . . . . High Security . | . . . . . . . . . . . . . . . . . . . . . . . . Max Security . | . . . . . . . . . . . . . . . . . . . . . . . . Squads Dispatched 66 | . . . . 3 2 4 . 2 . . . . 1 . 6 . 1 16 . 8 8 7 8 Investigation 4 | . . . . . . 1 . . . . . . 1 . . . . . . . 1 1 . Extermination 19 | . . . . . 1 . . 1 . . . . . . 4 . 1 5 . . 1 2 4 Reinforcement 16 | . . . . 3 1 3 . 1 . . . . . . 2 . . 2 . 3 . 1 . Assault 5 | . . . . . . . . . . . . . . . . . . 1 . . . . 4 Garrison 2 | . . . . . . . . . . . . . . . . . . 2 . . . . . Intercept 20 | . . . . . . . . . . . . . . . . . . 6 . 5 6 3 . Searches Triggered . | . . . . . . . . . . . . . . . . . . . . . . . . Construction Impeded . | . . . . . . . . . . . . . . . . . . . . . . . . Haulers Reinforced 5 | . . . . . 1 1 . 1 . . . . . . . . . 1 . 1 . . . Active Scanning Responses . | . . . . . . . . . . . . . . . . . . . . . . . . Cargo Convoy Interrupts 1 | . . . . . . . . 1 . . . . . . . . . . . . . . . Stealth | -11 -10 -9 -9 -8 -7 -6 -6 -5 -5 -5 -5 -4 -4 -4 -4 -4 -3 -3 -3 -2 -2 -1 -1 --------- Run | Scr Mat Mat Sto Mat Fac Fac Ext Fac Upp Upp War Pro Fac Gar Arm Lab Res Tes Gar Res Qua Acc Com Distress Signals 27 | . 1 1 2 2 . . . . . . . . . . . . 1 1 . 19 . . . Communications Jammed 84 | . . . . . . 1 . 1 . . 1 . . . 61 . 3 . . 2 . 15 . Distress Signals 83 | . . . . . . . . 1 . . 1 . . . 61 . 3 . . 2 . 15 . Times Spotted 464 | . 9 11 25 37 9 14 23 15 . 6 15 2 2 15 55 2 14 46 24 26 21 25 68 Peak Tracking Total 9 | . 5 3 5 4 3 4 5 4 . 3 8 2 2 3 5 2 3 6 6 9 4 4 9 Tactical Retreats 15 | . . . . . . . 2 . . . . . . 1 2 . . 3 1 1 . . 5 Traps | -11 -10 -9 -9 -8 -7 -6 -6 -5 -5 -5 -5 -4 -4 -4 -4 -4 -3 -3 -3 -2 -2 -1 -1 ------- Run | Scr Mat Mat Sto Mat Fac Fac Ext Fac Upp Upp War Pro Fac Gar Arm Lab Res Tes Gar Res Qua Acc Com Traps Triggered 30 | . . . 4 2 2 2 . 3 . . . . 1 1 5 . . 3 2 . 4 1 . Indirectly . | . . . . . . . . . . . . . . . . . . . . . . . . Trap Hack Attempts . | . . . . . . . . . . . . . . . . . . . . . . . . Triggered . | . . . . . . . . . . . . . . . . . . . . . . . . Disarmed . | . . . . . . . . . . . . . . . . . . . . . . . . Reprogrammed 6 | . 6 . . . . . . . . . . . . . . . . . . . . . . Reused 1 | . 1 . . . . . . . . . . . . . . . . . . . . . . Traps Extracted . | . . . . . . . . . . . . . . . . . . . . . . . . Installed . | . . . . . . . . . . . . . . . . . . . . . . . . Triggered 18 | . 1 . . . . . . 1 . . 16 . . . . . . . . . . . . Machines | -11 -10 -9 -9 -8 -7 -6 -6 -5 -5 -5 -5 -4 -4 -4 -4 -4 -3 -3 -3 -2 -2 -1 -1 ---------- Run | Scr Mat Mat Sto Mat Fac Fac Ext Fac Upp Upp War Pro Fac Gar Arm Lab Res Tes Gar Res Qua Acc Com Machines Disabled 63 | . . 1 3 4 2 2 2 . . . . . . 2 6 9 3 12 7 3 3 . 4 Max in Single Turn 6 | . . 1 1 2 1 1 1 . . . . . . 1 1 6 1 1 2 1 1 . 2 Garrison Access 3 | . . . 1 . . 1 . . . . . . . . . . . . . 1 . . . Garrison Relay 7 | . . . . . . . . . . . . . . 2 . . . . 5 . . . . Phase Generator 2 | . . . . . . . . . . . . . . . . . . . 1 . . . 1 Machines Sabotaged . | . . . . . . . . . . . . . . . . . . . . . . . . Garrisons Compromised 1 | . . . . . . . . 1 . . . . . . . . . . . . . . . Overloaded Fab Kills . | . . . . . . . . . . . . . . . . . . . . . . . . Hacking | -11 -10 -9 -9 -8 -7 -6 -6 -5 -5 -5 -5 -4 -4 -4 -4 -4 -3 -3 -3 -2 -2 -1 -1 --------- Run | Scr Mat Mat Sto Mat Fac Fac Ext Fac Upp Upp War Pro Fac Gar Arm Lab Res Tes Gar Res Qua Acc Com Machines Accessed 89 | . 7 4 9 2 3 5 11 3 . . 10 . 3 . 8 1 . 6 . 2 8 4 3 Terminals 65 | . 7 4 8 2 1 3 11 3 . . . . 2 . 5 . . 3 . 1 8 4 3 Fabricators 7 | . . . . . 2 1 . . . . . . . . 3 . . 1 . . . . . Repair Stations . | . . . . . . . . . . . . . . . . . . . . . . . . Recycling Units . | . . . . . . . . . . . . . . . . . . . . . . . . Scanalyzers 1 | . . . . . . . . . . . . . . . . . . 1 . . . . . Garrison Access 5 | . . . 1 . . 1 . . . . . . 1 . . . . 1 . 1 . . . Total Hacks 202 | . 23 14 25 5 6 10 19 5 . . 18 . 12 . 15 4 . 14 . 2 17 7 6 Successful 116 | . 16 9 14 2 4 3 12 2 . . 18 . 6 . 3 4 . 9 . 1 8 4 1 Failed 86 | . 7 5 11 3 2 7 7 3 . . . . 6 . 12 . . 5 . 1 9 3 5 Catastrophic 9 | . 1 1 2 . . 1 . . . . . . . . 3 . . . . . . . 1 Database Lockouts . | . . . . . . . . . . . . . . . . . . . . . . . . Manual 120 | . 14 12 22 5 4 7 9 4 . . 1 . 5 . 12 . . 10 . 1 12 1 1 Terminals 157 | . 23 14 24 5 1 7 19 5 . . . . 9 . 10 . . 9 . 1 17 7 6 Fabricators 14 | . . . . . 5 2 . . . . . . . . 5 . . 2 . . . . . Repair Stations . | . . . . . . . . . . . . . . . . . . . . . . . . Recycling Units . | . . . . . . . . . . . . . . . . . . . . . . . . Scanalyzers 2 | . . . . . . . . . . . . . . . . . . 2 . . . . . Garrison Access 7 | . . . 1 . . 1 . . . . . . 3 . . . . 1 . 1 . . . Terminal Hacks 69 | . 9 5 7 . 1 1 9 1 . . 18 . 4 . 1 4 . 2 . . 3 3 1 Record 23 | . . . . . . . . . . . 16 . 3 . . 3 . . . . 1 . . Prototype ID Bank 3 | . 2 1 . . . . . . . . . . . . . . . . . . . . . Open Door 16 | . . . 2 . . . 8 . . . 2 . . . . . . . . . . 3 1 Level Access Points 1 | . 1 . . . . . . . . . . . . . . . . . . . . . . Branch Access Points 2 | . . . . . 1 1 . . . . . . . . . . . . . . . . . Unreport Threat 19 | . 4 3 5 . . . 1 1 . . . . 1 . 1 . . 1 . . 2 . . Locate Traps 1 | . 1 . . . . . . . . . . . . . . . . . . . . . . Reprogram Traps 1 | . 1 . . . . . . . . . . . . . . . . . . . . . . Zone Layout 1 | . . 1 . . . . . . . . . . . . . . . . . . . . . Protovariant Controls 1 | . . . . . . . . . . . . . . . . . . 1 . . . . . Gate Test 138-A 1 | . . . . . . . . . . . . . . . . 1 . . . . . . . Fabricator Hacks 1 | . . . . . 1 . . . . . . . . . . . . . . . . . . Build 1 | . . . . . 1 . . . . . . . . . . . . . . . . . . Repair Station Hacks . | . . . . . . . . . . . . . . . . . . . . . . . . Recycling Unit Hacks . | . . . . . . . . . . . . . . . . . . . . . . . . Scanalyzer 2 | . . . . . . . . . . . . . . . . . . 2 . . . . . Insert Component 1 | . . . . . . . . . . . . . . . . . . 1 . . . . . Analyze 1 | . . . . . . . . . . . . . . . . . . 1 . . . . . Garrison Access Hacks 5 | . . . 1 . . 1 . . . . . . 1 . . . . 1 . 1 . . . Unlock Access 2 | . . . . . . . . . . . . . 1 . . . . 1 . . . . . Seal Access 3 | . . . 1 . . 1 . . . . . . . . . . . . . 1 . . . Unauthorized Hacks 39 | . 7 4 6 2 2 1 3 1 . . . . 1 . 2 . . 4 . . 5 1 . Terminals 35 | . 7 4 6 2 . 1 3 1 . . . . 1 . . . . 4 . . 5 1 . Assimilate 2 | . . . . . . . . . . . . . 1 . . . . 1 . . . . . Botnet 31 | . 7 4 6 2 . 1 1 1 . . . . . . . . . 3 . . 5 1 . Detonate 2 | . . . . . . . 2 . . . . . . . . . . . . . . . . Fabricators 4 | . . . . . 2 . . . . . . . . . 2 . . . . . . . . Liberate 1 | . . . . . 1 . . . . . . . . . . . . . . . . . . Fabnet 3 | . . . . . 1 . . . . . . . . . 2 . . . . . . . . Repair Stations . | . . . . . . . . . . . . . . . . . . . . . . . . Recycling Units . | . . . . . . . . . . . . . . . . . . . . . . . . Scanalyzers . | . . . . . . . . . . . . . . . . . . . . . . . . Garrison Access . | . . . . . . . . . . . . . . . . . . . . . . . . Data Cores Recovered 4 | . . . 1 . . . 1 1 . . . . . . . . . 1 . . . . . Used 2 | . . . . . . . . 1 . . . . . . . . . 1 . . . . . Hacking Detections 61 | . 6 4 6 2 3 3 6 3 . . . . 3 . 7 . . 6 . 1 7 1 3 Full Trace Events 3 | . . . . . . 1 . . . . . . 1 . . . . . . . . 1 . Feedback Events . | . . . . . . . . . . . . . . . . . . . . . . . . Feedback Blocked . | . . . . . . . . . . . . . . . . . . . . . . . . Robot Schematics Acquired 3 | . . . . . . . . . . . . . . . . . . 3 . . . . . Robots Built . | . . . . . . . . . . . . . . . . . . . . . . . . Authchips . | . . . . . . . . . . . . . . . . . . . . . . . . Time . | . . . . . . . . . . . . . . . . . . . . . . . . Total Robot Build Rating . | . . . . . . . . . . . . . . . . . . . . . . . . Part Schematics Acquired 2 | . . . . . . . . . . . . . . . . . . 2 . . . . . Parts Built 1 | . . . . . 1 . . . . . . . . . . . . . . . . . . Authchips . | . . . . . . . . . . . . . . . . . . . . . . . . Time 39 | . . . . . 39 . . . . . . . . . . . . . . . . . . Total Part Build Rating 7 | . . . . . 7 . . . . . . . . . . . . . . . . . . Parts Repaired . | . . . . . . . . . . . . . . . . . . . . . . . . Time . | . . . . . . . . . . . . . . . . . . . . . . . . Parts Recycled . | . . . . . . . . . . . . . . . . . . . . . . . . Recycled Matter . | . . . . . . . . . . . . . . . . . . . . . . . . Retrieved Matter . | . . . . . . . . . . . . . . . . . . . . . . . . Retrieved Components . | . . . . . . . . . . . . . . . . . . . . . . . . Parts Scanalyzed 1 | . . . . . . . . . . . . . . . . . . 1 . . . . . Part Schematics Acquired 1 | . . . . . . . . . . . . . . . . . . 1 . . . . . Parts Damaged . | . . . . . . . . . . . . . . . . . . . . . . . . Bothacking | -11 -10 -9 -9 -8 -7 -6 -6 -5 -5 -5 -5 -4 -4 -4 -4 -4 -3 -3 -3 -2 -2 -1 -1 ------------ Run | Scr Mat Mat Sto Mat Fac Fac Ext Fac Upp Upp War Pro Fac Gar Arm Lab Res Tes Gar Res Qua Acc Com Used RIF Installer 2 | . . . . . . . . . . . . . . 1 . . . . 1 . . . . Watcher Feeds 1 | . . . . . . . . . . . . . . . . . . . 1 . . . . Robots Hacked 8 | . . . . . . 1 1 . . . . . . . . . 1 2 1 2 . . . Non-combat . | . . . . . . . . . . . . . . . . . . . . . . . . Combat 8 | . . . . . . 1 1 . . . . . . . . . 1 2 1 2 . . . Robot Hacks Applied . | . . . . . . . . . . . . . . . . . . . . . . . . Relay Couplers Released 10 | . . . . . . . . . . . . . . 2 . . . . 8 . . . . Machine Destruction 10 | . . . . . . . . . . . . . . 2 . . . . 8 . . . . Attached 1 | . . . . . . . . . . . . . . . . . . . 1 . . . . Fabnet Peak Effective % 6 | . . . . . . 3 3 1 1 1 1 . . . . . 6 6 6 2 2 . . Autooverrided 8 | . . . . . . 1 1 . . . . . . . . . 1 2 1 2 . . . Robots Rewired 15 | . . . . . . . . . . . . . . . 15 . . . . . . . . Allies Hacked . | . . . . . . . . . . . . . . . . . . . . . . . . Hacks Repelled . | . . . . . . . . . . . . . . . . . . . . . . . . Allies | -11 -10 -9 -9 -8 -7 -6 -6 -5 -5 -5 -5 -4 -4 -4 -4 -4 -3 -3 -3 -2 -2 -1 -1 -------- Run | Scr Mat Mat Sto Mat Fac Fac Ext Fac Upp Upp War Pro Fac Gar Arm Lab Res Tes Gar Res Qua Acc Com Total Allies 34 | . . . . . . 1 10 . . . . . 1 . 15 . 1 3 1 2 . . . Largest Group 7 | . . . . . . 1 4 4 . . . . 1 1 7 1 1 1 1 1 . . . Highest-Rated Group 284 | . . . . . . 29 235 235 . . . . 26 26 284 47 30 82 33 69 . . . Highest-Rated Ally 159 | . . . . . . 29 159 159 . . . . 26 26 56 47 30 82 33 69 . . . Total Orders . | . . . . . . . . . . . . . . . . . . . . . . . . Ally Attacks 139 | . . . . . . 4 22 5 . . . . . . 94 2 3 4 . 5 . . . Total Damage 3713 | . . . . . . 76 324 102 . . . . . . 2857 . 48 26 . 280 . . . Kills 25 | . . . . . . 1 2 2 . . . . . . 19 . . . . 1 . . . Allies Corrupted 1 | . . . . . . . . . . . . . . . 1 . . . . . . . . Allies Melted 2 | . . . . . . . . 1 . . 1 . . . . . . . . . . . . Intel | -11 -10 -9 -9 -8 -7 -6 -6 -5 -5 -5 -5 -4 -4 -4 -4 -4 -3 -3 -3 -2 -2 -1 -1 ------- Run | Scr Mat Mat Sto Mat Fac Fac Ext Fac Upp Upp War Pro Fac Gar Arm Lab Res Tes Gar Res Qua Acc Com Robot Analysis Total . | . . . . . . . . . . . . . . . . . . . . . . . . Derelict Logs Recovered 4 | . . . . . . . . . 2 1 . 1 . . . . . . . . . . . Drone Launches . | . . . . . . . . . . . . . . . . . . . . . . . . Drone Recoveries . | . . . . . . . . . . . . . . . . . . . . . . . . Exploration | -11 -10 -9 -9 -8 -7 -6 -6 -5 -5 -5 -5 -4 -4 -4 -4 -4 -3 -3 -3 -2 -2 -1 -1 ------------- Run | Scr Mat Mat Sto Mat Fac Fac Ext Fac Upp Upp War Pro Fac Gar Arm Lab Res Tes Gar Res Qua Acc Com Turns Passed 22171 | 248 497 312 1268 1784 874 838 1439 787 417 377 778 231 328 639 1559 535 446 1909 1545 1161 1122 1168 1909 Spaces Moved 13969 | 185 308 188 788 1225 618 510 954 541 348 282 624 158 258 371 959 269 287 1000 1013 747 655 674 1007 Core 13 | 13 . . . . . . . . . . . . . . . . . . . . . . . Treads . | . . . . . . . . . . . . . . . . . . . . . . . . Legs 13956 | 172 308 188 788 1225 618 510 954 541 348 282 624 158 258 371 959 269 287 1000 1013 747 655 674 1007 Wheels . | . . . . . . . . . . . . . . . . . . . . . . . . Hover . | . . . . . . . . . . . . . . . . . . . . . . . . Flight . | . . . . . . . . . . . . . . . . . . . . . . . . Fastest Speed 50 | 50 120 120 120 110 120 120 120 120 120 120 120 120 120 120 120 120 120 120 120 120 120 120 120 Average Speed 120 | 115 120 120 120 119 120 120 120 120 120 120 120 120 120 120 121 120 120 120 120 120 120 120 121 Slowest Speed 190 | 120 120 120 120 120 120 120 120 120 120 120 120 120 120 120 190 120 120 190 120 120 120 120 190 Overloaded Moves . | . . . . . . . . . . . . . . . . . . . . . . . . Propulsion Burnouts . | . . . . . . . . . . . . . . . . . . . . . . . . Robots Hopped 1 | . . . . . . . . . . . . . . . 1 . . . . . . . . Cave-ins Triggered . | . . . . . . . . . . . . . . . . . . . . . . . . Teleports 1 | . . . . . . . . . . . . . . . . 1 . . . . . . . Exploration Rate (%) 51 | 8 69 29 95 84 19 19 96 17 54 59 90 34 7 51 66 100 13 83 98 26 71 15 29 Regions Visited 23 Branch Regions 11 Pre-discovered Areas . | . . . . . . . . . . . . . . . . . . . . . . . . Known Exits Taken 21 | 1 1 1 1 1 1 1 1 1 1 1 1 1 1 . 1 1 1 1 . 1 1 1 . Unknown Exits Taken . | . . . . . . . . . . . . . . . . . . . . . . . . Scrap Searched 5 | . . . . . . . . . 2 . . 3 . . . . . . . . . . . Spaces Dug 23 | . . . . . . . . . . . . . . . 1 . . . . 19 1 1 1 Terrain Destroyed 505 | . . . . 38 33 27 . . . . . . . 13 15 75 1 35 74 44 21 21 108 Melee . | . . . . . . . . . . . . . . . . . . . . . . . . Projectile 147 | . . . . 5 . . . . . . . . . 13 14 . 1 19 19 21 14 14 27 AOE 305 | . . . . 33 33 27 . . . . . . . . . 75 . . 50 16 . . 71 Terrain Rammed . | . . . . . . . . . . . . . . . . . . . . . . . . Walls Destroyed . | . . . . . . . . . . . . . . . . . . . . . . . . Machines Disabled . | . . . . . . . . . . . . . . . . . . . . . . . . Actions | -11 -10 -9 -9 -8 -7 -6 -6 -5 -5 -5 -5 -4 -4 -4 -4 -4 -3 -3 -3 -2 -2 -1 -1 --------- Run | Scr Mat Mat Sto Mat Fac Fac Ext Fac Upp Upp War Pro Fac Gar Arm Lab Res Tes Gar Res Qua Acc Com Total 17371 | 208 384 248 974 1405 708 658 1154 615 347 307 654 183 273 472 1184 396 336 1437 1219 903 905 943 1458 Wait 1007 | . 5 25 13 18 53 43 72 1 . 13 19 . 7 1 28 8 2 149 76 24 148 133 169 Move 13942 | 184 307 187 787 1224 617 509 953 540 347 281 623 157 257 369 956 268 286 999 1011 746 654 673 1007 Hop 1 | . . . . . . . . . . . . . . . 1 . . . . . . . . Pick Up 41 | . . 2 8 2 . 2 2 1 . . 3 . 1 . 3 6 . 3 1 2 . 2 3 Fast Attach 164 | 10 1 1 9 16 3 7 3 1 . 1 . 1 4 3 13 14 3 32 4 4 16 11 7 Attach 33 | . . . . . . 1 2 . . . . 1 1 . . 6 . 1 . 3 . . 18 Detach 53 | 1 . 1 . 3 2 3 3 1 . 1 . 1 1 3 1 8 . 1 1 2 . 1 19 Swap 39 | . 1 4 7 8 . 1 . 1 . . . . . 3 5 2 1 3 3 . . . . Drop 156 | 1 1 5 18 19 1 11 3 2 . . 2 . 1 3 17 19 2 22 2 4 4 10 9 Fire 1086 | 9 60 14 80 74 21 40 49 33 . 7 . 17 1 42 76 42 21 117 49 65 50 59 160 Melee . | . . . . . . . . . . . . . . . . . . . . . . . . Ram . | . . . . . . . . . . . . . . . . . . . . . . . . Kick 26 | 3 1 . 2 3 4 1 1 . . . . . . . . . . 8 . 2 . 1 . Crush . | . . . . . . . . . . . . . . . . . . . . . . . . Escape Stasis 19 | . . . 12 . . . . . . . . . . 5 . . . . 2 . . . . Rewire 45 | . . . . . . . . . . . . . . . 45 . . . . . . . . Trap . | . . . . . . . . . . . . . . . . . . . . . . . . Miscellaneous 759 | . 8 9 38 38 7 40 66 35 . 4 7 6 . 43 39 23 21 102 70 51 33 53 66 Route ------- -11/Scrapyard -10/Materials (discovered 3 exits: *Mat x3) -9/Materials -9/Storage (discovered 2 exits: *Mat / Rec) -8/Materials (discovered 3 exits: *Fac x3) -7/Factory (discovered 4 exits: *Fac x2 / Low x2) -6/Factory (discovered 4 exits: Low x2 / *Ext x2) -6/Extension (discovered 3 exits: *Fac x2 / *Cet) -5/Factory (discovered 2 exits: *Fac / *Upp) -5/Upper Caves -5/Upper Caves -5/Warlord -4/Proximity Caves -4/Factory (discovered 3 exits: Res x2 / Gar) -4/Garrison -4/Armory (discovered 3 exits: *Res x2 / *Lab) -4/Lab -3/Research -3/Testing (discovered 2 exits: *Res / Gar) -3/Garrison (discovered 3 exits: *Res x3) -2/Research -2/Quarantine -1/Access -1/Command (discovered 1 exit: Sur) History --------- Turn | Location | Event 2 | -11/Scrapyard | Met Revision 17 7 | -11/Scrapyard | Identified exit to Materials 7 | -11/Scrapyard | Discovered exit to Materials (range 15) 17 | -11/Scrapyard | Upgraded with Propulsion slot (x1) 17 | -11/Scrapyard | Upgraded with Utility slot (x3) 17 | -11/Scrapyard | Upgraded with Weapon slot (x1) 249 | -11/Scrapyard | Entered Materials 290 | -10/Materials | Identified exit to Materials 315 | -10/Materials | Build established: Hacker-Mutant 746 | -10/Materials | Entered another Materials area 748 | -9/Materials | Reached level 2 748 | -9/Materials | Reached level 3 860 | -9/Materials | Reached level 4 909 | -9/Materials | Build established: Hacker-Skirmisher 1045 | -9/Materials | Identified exit to Storage 1045 | -9/Materials | Discovered exit to Storage (range 5) 1058 | -9/Materials | Entered Storage 1060 | -9/Storage | Reached level 5 1066 | -9/Storage | Upgraded with Propulsion slot (x1) 1292 | -9/Storage | Reached level 6 1535 | -9/Storage | Identified exit to Materials 1535 | -9/Storage | Discovered exit to Materials (range 8) 2094 | -9/Storage | Reached level 7 2132 | -9/Storage | Identified exit to Recycling 2132 | -9/Storage | Discovered exit to Recycling (range 16) 2188 | -9/Storage | Upgraded with Utility slot (x2) 2326 | -9/Storage | Entered Materials 2328 | -8/Materials | Reached level 8 2337 | -8/Materials | Upgraded with Weapon slot (x1) 2520 | -8/Materials | Identified exit to Factory 2520 | -8/Materials | Discovered exit to Factory (range 18) 2761 | -8/Materials | Build established: Scavenger-Skirmisher 3034 | -8/Materials | Reached level 9 3040 | -8/Materials | Upgraded with Utility slot (x1) 3359 | -8/Materials | Discovered exit to Factory (range 18) 3693 | -8/Materials | Discovered exit to Factory (range 11) 3745 | -8/Materials | Reached level 10 4109 | -8/Materials | Build established: Hacker-Skirmisher 4110 | -8/Materials | Entered Factory 4112 | -7/Factory | Reached level 11 4474 | -7/Factory | Reached level 12 4724 | -7/Factory | Fabricated Adv. Transmission Jammer (x1) 4874 | -7/Factory | Identified exit to Factory 4874 | -7/Factory | Discovered exit to Factory (range 16) 4939 | -7/Factory | Discovered exit to Factory (range 14) 4957 | -7/Factory | Identified exit to Lower Caves 4984 | -7/Factory | Entered another Factory area 4986 | -6/Factory | Reached level 13 4988 | -6/Factory | Upgraded with Power slot (x1) 5241 | -6/Factory | Identified exit to Lower Caves 5241 | -6/Factory | Identified exit to Extension 5472 | -6/Factory | Spotted B-75 Beast 5496 | -6/Factory | Reached level 14 5554 | -6/Factory | Core integrity fell below 50% 5586 | -6/Factory | Destroyed B-75 Beast 5822 | -6/Factory | Entered Extension 5824 | -6/Extension | Reached level 15 5838 | -6/Extension | Disrupted transfer network 6046 | -6/Extension | Rescued a captive Derelict 6063 | -6/Extension | Rescued a captive Derelict 6133 | -6/Extension | Rescued a captive Derelict 6150 | -6/Extension | Spotted B-75 Beast 6157 | -6/Extension | Rescued a captive Derelict 6159 | -6/Extension | Rescued a captive Derelict 6165 | -6/Extension | Spotted B-75 Beast 6274 | -6/Extension | Destroyed B-75 Beast 6289 | -6/Extension | Destroyed B-75 Beast 6331 | -6/Extension | Identified exit to Factory 6331 | -6/Extension | Discovered exit to Factory (range 17) 6343 | -6/Extension | Reached level 16 6483 | -6/Extension | Rescued a captive Derelict 6505 | -6/Extension | Rescued a captive Derelict 6578 | -6/Extension | Rescued a captive Derelict 6608 | -6/Extension | Rescued A7 6636 | -6/Extension | Identified exit to Cetus 6636 | -6/Extension | Discovered exit to Cetus (range 13) 6643 | -6/Extension | Discovered exit to Factory (range 10) 7261 | -6/Extension | Entered Factory 7261 | -5/Factory | Accompanied by 4 allies (A7) 7263 | -5/Factory | Reached level 17 7596 | -5/Factory | Identified exit to Factory 7596 | -5/Factory | Discovered exit to Factory (range 10) 7709 | -5/Factory | Reached level 18 7962 | -5/Factory | Identified exit to Upper Caves 7962 | -5/Factory | Discovered exit to Upper Caves (range 19) 8027 | -5/Factory | Cargo convoy interrupted 8048 | -5/Factory | Entered Upper Caves 8050 | -5/Upper Caves | Reached level 19 8075 | -5/Upper Caves | Learned Factory stockpile data 8131 | -5/Upper Caves | Learned Factory terminal intel 8436 | -5/Upper Caves | Identified exit to Upper Caves 8436 | -5/Upper Caves | Discovered exit to Upper Caves (range 20) 8465 | -5/Upper Caves | Entered another Upper Caves area 8587 | -5/Upper Caves | Learned 4 Factory zone layouts 8797 | -5/Upper Caves | Attracted the attention of an 0b10 checkpoint 8806 | -5/Upper Caves | Identified exit to Warlord 8806 | -5/Upper Caves | Discovered exit to Warlord (range 14) 8842 | -5/Upper Caves | Entered Warlord 8844 | -5/Warlord | Reached level 20 8866 | -5/Warlord | Identified exit to Proximity Caves 8866 | -5/Warlord | Discovered exit to Proximity Caves (range 18) 8883 | -5/Warlord | System corruption cleaned by Quarantine Array 9094 | -5/Warlord | Met Warlord 9118 | -5/Warlord | Warlord's base attacked by MAIN.C 9232 | -5/Warlord | Found Prototype Launcher 9236 | -5/Warlord | Found Prototype Energy Cannon 9468 | -5/Warlord | Warlord forces counterattacked 9510 | -5/Warlord | Opened side exit 9618 | -5/Warlord | Spotted Executioner 9620 | -5/Warlord | Entered Proximity Caves 9622 | -4/Proximity Caves | Reached level 21 9678 | -4/Proximity Caves | Identified Vortex Cannon 9813 | -4/Proximity Caves | Discovered exit to Factory (range 11) 9833 | -4/Proximity Caves | Spotted B-86 Titan 9851 | -4/Proximity Caves | Entered Factory 9852 | -4/Factory | Identified exit to Research 9853 | -4/Factory | Reached level 22 9854 | -4/Factory | Loaded intel: 26 terminal locations 9854 | -4/Factory | Upgraded with Utility slot (x1) 9918 | -4/Factory | Discovered exit to Research (range 18) 10178 | -4/Factory | Identified exit to Garrison 10179 | -4/Factory | Entered Garrison 10179 | -4/Garrison | Accompanied by 1 ally 10190 | -4/Garrison | Triggered checkpoint 10240 | -4/Garrison | Triggered checkpoint 10246 | -4/Garrison | Reached level 23 10270 | -4/Garrison | Triggered checkpoint 10277 | -4/Garrison | Garrison Relay disabled 10365 | -4/Garrison | Build established: Hacker-Tank 10425 | -4/Garrison | Spotted B-86 Titan 10554 | -4/Garrison | Destroyed B-86 Titan 10622 | -4/Garrison | Triggered checkpoint 10726 | -4/Garrison | Garrison Relay disabled 10767 | -4/Garrison | Identified exit to Armory 10767 | -4/Garrison | Discovered exit to Armory (range 17) 10812 | -4/Garrison | Installed Relay Interface Framework 10818 | -4/Garrison | Entered Armory 10820 | -4/Armory | Reached level 24 11100 | -4/Armory | Reached level 25 11356 | -4/Armory | Upgraded with Propulsion slot (x1) 11568 | -4/Armory | Discovered exit to Research (range 20) 11849 | -4/Armory | Build established: Hacker-Gunner 12105 | -4/Armory | Reached level 26 12269 | -4/Armory | Discovered exit to Research (range 11) 12366 | -4/Armory | Identified exit to Lab 12366 | -4/Armory | Discovered exit to Lab (range 3) 12377 | -4/Armory | Entered Lab 12377 | -4/Lab | Accompanied by 1 ally 12377 | -4/Lab | Discovered exit to Research (range 9) 12395 | -4/Lab | Unable to decrypt terminal 12424 | -4/Lab | Identified Vortex Catalyst Activator 12431 | -4/Lab | Detected for breach 12431 | -4/Lab | Disabled Active System Cloaker 12437 | -4/Lab | MAIN.C forces arrive to investigate 12437 | -4/Lab | Confronted by A5 12496 | -4/Lab | System corruption reached 10% 12549 | -4/Lab | Core integrity fell below 50% 12557 | -4/Lab | Destroyed A5 12565 | -4/Lab | Gained access to the hidden lab's interior 12639 | -4/Lab | Found Prototype Protection 12639 | -4/Lab | Identified Med. Regenerative Plating 12671 | -4/Lab | Found Alien Artifact 12671 | -4/Lab | Identified Transdimensional Reconstructor 12671 | -4/Lab | Warped through subspace 12708 | -4/Lab | Found Alien Artifact 12708 | -4/Lab | Identified Integrated Dissipator 12708 | -4/Lab | Installed Integrated Dissipator, increased core heat dissipation (+20) 12720 | -4/Lab | Found Alien Artifact 12720 | -4/Lab | Identified Core Regenerator 12720 | -4/Lab | Used Core Regenerator, restored core integrity (+161) 12741 | -4/Lab | Found Prototype Protection 12741 | -4/Lab | Identified Exp. Powered Armor 12752 | -4/Lab | Found Prototype Energy Cannon 12752 | -4/Lab | Identified Potential Cannon 12760 | -4/Lab | Found Prototype Energy Cannon 12760 | -4/Lab | Identified Warp Cannon 12787 | -4/Lab | Unable to decrypt terminal 12857 | -4/Lab | Unable to decrypt terminal 12867 | -4/Lab | Found Alien Artifact 12867 | -4/Lab | Identified LC Capacitor 12909 | -4/Lab | Upgraded with Weapon slot (x1) 12912 | -4/Lab | Entered Research 12914 | -3/Research | Reached level 27 12994 | -3/Research | Local machine network offline 13009 | -3/Research | Reached level 28 13115 | -3/Research | Build established: Hacker-Skirmisher 13317 | -3/Research | Identified exit to Testing 13317 | -3/Research | Discovered exit to Testing (range 21) 13358 | -3/Research | Entered Testing 13413 | -3/Testing | Found Prototype Ballistic Gun 13413 | -3/Testing | Identified Hyp. Multirail 13767 | -3/Testing | Protovariant out of control (PY-GM3BDCBJJA) 13767 | -3/Testing | Unleashed a protovariant (PY-GM3BDCBJJA) 13888 | -3/Testing | Intercept squad dispatched 13915 | -3/Testing | Spotted Tracker 13916 | -3/Testing | Spotted Tracker 13929 | -3/Testing | Reached level 29 13929 | -3/Testing | Destroyed Tracker 13940 | -3/Testing | Destroyed Tracker 13941 | -3/Testing | System corruption reached 10% 13959 | -3/Testing | Spotted Combat Programmer 13961 | -3/Testing | Spotted Combat Programmer 13972 | -3/Testing | Destroyed Combat Programmer 13988 | -3/Testing | Core integrity fell below 50% 13996 | -3/Testing | Destroyed Combat Programmer 14111 | -3/Testing | Found Prototype Device 14111 | -3/Testing | Identified Exp. Hardlight Generator 14142 | -3/Testing | Found Prototype Launcher 14142 | -3/Testing | Identified Z-bomb Delivery System 14177 | -3/Testing | Spotted Striker 14178 | -3/Testing | Spotted Striker 14293 | -3/Testing | Found Prototype Energy Gun 14293 | -3/Testing | Identified Hyp. EM Gauss Rifle 14337 | -3/Testing | Found Prototype Device 14337 | -3/Testing | Identified Exp. Thermal Shield 14407 | -3/Testing | Destroyed Striker 14426 | -3/Testing | Destroyed Striker 14436 | -3/Testing | Upgraded with Utility slot (x1) 14601 | -3/Testing | Spotted Alpha 7 14631 | -3/Testing | Destroyed Alpha 7 14647 | -3/Testing | Found Prototype Processor 14647 | -3/Testing | Identified Exp. Targeting Computer 14668 | -3/Testing | Stole the SGEMP Prototype 14689 | -3/Testing | Build established: Hacker-Tank 14987 | -3/Testing | Identified exit to Research 14987 | -3/Testing | Discovered exit to Research (range 20) 15003 | -3/Testing | Intercept squad dispatched 15004 | -3/Testing | Spotted Tracker 15005 | -3/Testing | Spotted Tracker 15007 | -3/Testing | Spotted Combat Programmer 15008 | -3/Testing | Spotted Combat Programmer 15044 | -3/Testing | Destroyed Tracker 15060 | -3/Testing | System corruption reached 30% 15061 | -3/Testing | Core integrity fell below 20% 15061 | -3/Testing | Destroyed Combat Programmer 15069 | -3/Testing | Destroyed Combat Programmer 15126 | -3/Testing | Garrison activated, responded to threat 15129 | -3/Testing | Scanned by Researcher 15266 | -3/Testing | Identified exit to Garrison 15267 | -3/Testing | Entered Garrison 15314 | -3/Garrison | Triggered checkpoint 15333 | -3/Garrison | Garrison Relay disabled 15390 | -3/Garrison | Triggered checkpoint 15394 | -3/Garrison | Triggered checkpoint 15429 | -3/Garrison | Reached level 30 15634 | -3/Garrison | Triggered checkpoint 15675 | -3/Garrison | Garrison Relay disabled 15699 | -3/Garrison | Phase Generator disabled 15705 | -3/Garrison | Discovered exit to Research (range 17) 15804 | -3/Garrison | Expanded RIF knowledge: Watcher Feeds 15890 | -3/Garrison | Spotted B-86 Titan 15912 | -3/Garrison | Triggered checkpoint 15912 | -3/Garrison | Triggered checkpoint 15999 | -3/Garrison | Garrison Relay disabled 16051 | -3/Garrison | Discovered exit to Research (range 17) 16091 | -3/Garrison | Garrison Relay disabled 16195 | -3/Garrison | Spotted B-86 Titan 16213 | -3/Garrison | Triggered checkpoint 16290 | -3/Garrison | Discovered exit to Research (range 19) 16394 | -3/Garrison | Triggered checkpoint 16411 | -3/Garrison | Triggered checkpoint 16494 | -3/Garrison | Triggered checkpoint 16729 | -3/Garrison | Garrison Relay disabled 16812 | -3/Garrison | Entered Research 16812 | -2/Research | Warlord forces began assault on 0b10 16814 | -2/Research | Reached level 31 16912 | -2/Research | Local machine network offline 17030 | -2/Research | Upgraded with Utility slot (x1) 17115 | -2/Research | Spotted Executioner 17120 | -2/Research | Spotted Striker 17229 | -2/Research | Spotted Executioner 17230 | -2/Research | Spotted Striker 17239 | -2/Research | Destroyed Executioner 17264 | -2/Research | Destroyed Striker 17282 | -2/Research | Met up with Warlord 17325 | -2/Research | Borebot progress halted 17348 | -2/Research | Build established: Hacker-Gunner 17353 | -2/Research | Borebot progress halted 17456 | -2/Research | Borebot progress halted 17653 | -2/Research | Spotted Striker 17654 | -2/Research | Spotted Striker 17664 | -2/Research | Spotted Tracker 17669 | -2/Research | Spotted Tracker 17670 | -2/Research | Spotted Tracker 17677 | -2/Research | Destroyed Tracker 17685 | -2/Research | Destroyed Striker 17685 | -2/Research | Destroyed Striker 17693 | -2/Research | Destroyed Tracker 17694 | -2/Research | Spotted Combat Programmer 17699 | -2/Research | Destroyed Tracker 17704 | -2/Research | Reached level 32 17705 | -2/Research | Spotted Combat Programmer 17707 | -2/Research | Spotted Combat Programmer 17714 | -2/Research | Destroyed Combat Programmer 17731 | -2/Research | Core integrity fell below 50% 17735 | -2/Research | Destroyed 8 combat bots 17736 | -2/Research | Destroyed Combat Programmer 17754 | -2/Research | Destroyed Combat Programmer 17857 | -2/Research | Spotted Striker 17859 | -2/Research | Spotted Striker 17860 | -2/Research | Destroyed Striker 17869 | -2/Research | Identified exit to Quarantine 17869 | -2/Research | Discovered exit to Quarantine (range 15) 17973 | -2/Research | Entered Quarantine 18147 | -2/Quarantine | Cryocooling Duct disabled 18162 | -2/Quarantine | Ambient heat levels rising (+20) 18162 | -2/Quarantine | Non-combat units ordered to evacuate 18373 | -2/Quarantine | Intercept squad dispatched 18386 | -2/Quarantine | Spotted Tracker 18386 | -2/Quarantine | Spotted Tracker 18397 | -2/Quarantine | Destroyed Tracker 18404 | -2/Quarantine | Destroyed Tracker 18414 | -2/Quarantine | Spotted Combat Programmer 18417 | -2/Quarantine | Spotted Combat Programmer 18435 | -2/Quarantine | Destroyed Combat Programmer 18455 | -2/Quarantine | Destroyed Combat Programmer 18633 | -2/Quarantine | Identified exit to Access 18633 | -2/Quarantine | Discovered exit to Access (range 19) 18642 | -2/Quarantine | Cryocooling Duct disabled 18643 | -2/Quarantine | Cryocooling Duct disabled 18657 | -2/Quarantine | Ambient heat levels rising (+20) 18657 | -2/Quarantine | Combat units ordered to evacuate 18658 | -2/Quarantine | Ambient heat levels rising (+20) 18757 | -2/Quarantine | Quarantine Guard activated 18898 | -2/Quarantine | Spotted Quarantine Guard 18898 | -2/Quarantine | Spotted Quarantine Guard 18907 | -2/Quarantine | Destroyed Quarantine Guard 18911 | -2/Quarantine | Destroyed Quarantine Guard 18986 | -2/Quarantine | Intercept squad dispatched 18988 | -2/Quarantine | Spotted Tracker 18989 | -2/Quarantine | Spotted Tracker 18991 | -2/Quarantine | Destroyed Tracker 18992 | -2/Quarantine | Spotted Combat Programmer 18993 | -2/Quarantine | Spotted Combat Programmer 18996 | -2/Quarantine | System corruption reached 10% 19024 | -2/Quarantine | Destroyed Combat Programmer 19040 | -2/Quarantine | Spotted Quarantine Guard 19049 | -2/Quarantine | Destroyed Combat Programmer 19050 | -2/Quarantine | Spotted Quarantine Guard 19095 | -2/Quarantine | Entered Access 19097 | -1/Access | Reached level 33 19303 | -1/Access | Reached level 34 19351 | -1/Access | Upgraded with Utility slot (x1) 19456 | -1/Access | Identified exit to Command 19456 | -1/Access | Discovered exit to Command (range 18) 19517 | -1/Access | Found Prototype Processor 19517 | -1/Access | Identified Exp. Core Analyzer 20107 | -1/Access | Build established: Hacker-Tank 20112 | -1/Access | Intercept squad dispatched 20124 | -1/Access | Spotted Tracker 20125 | -1/Access | Spotted Tracker 20132 | -1/Access | Destroyed Tracker 20141 | -1/Access | Destroyed Tracker 20153 | -1/Access | Spotted Combat Programmer 20166 | -1/Access | Spotted Combat Programmer 20167 | -1/Access | Destroyed Combat Programmer 20180 | -1/Access | Destroyed Combat Programmer 20263 | -1/Access | Entered Command 20265 | -1/Command | Reached level 35 20299 | -1/Command | Phase Generator disabled 20498 | -1/Command | Found Unknown Device 20498 | -1/Command | Identified Antimissile System 20707 | -1/Command | Identified exit to Surface 20707 | -1/Command | Discovered exit to Surface (range 16) 21013 | -1/Command | First assault squad dispatched 21158 | -1/Command | Spotted M Guard 21158 | -1/Command | Spotted M Guard 21158 | -1/Command | Spotted Combat Programmer 21162 | -1/Command | Spotted Combat Programmer 21182 | -1/Command | Destroyed Combat Programmer 21194 | -1/Command | System corruption reached 10% 21202 | -1/Command | Destroyed Combat Programmer 21206 | -1/Command | Core integrity fell below 50% 21464 | -1/Command | Destroyed M Guard 21582 | -1/Command | Reached level 36 21689 | -1/Command | Upgraded with Power slot (x1) 21907 | -1/Command | Met MAIN.C 21927 | -1/Command | 0b10 Conduit disabled 21929 | -1/Command | MAIN.C activated Command garrisons 22003 | -1/Command | Build established: Generator-Tank 22004 | -1/Command | Destroyed MAIN.C Shell 22163 | -1/Command | Core integrity fell below 20% 22172 | -1/Command | Destroyed by P-80 Master with Gamma Rifle Last Messages --------------- 22163_ HV Slug penetrates MAIN.C. 22163_ MAIN.C suffers critical hit (Destroy). 22163_ HV Slug penetrates P-80 Master. 22163_ P-80 Master suffers critical hit (Destroy). 22163_ Destroyed Imp. Antigrav System. 22163_ HV Slug penetrates P-80 Master. 22163_ P-80 Master suffers critical hit (Destroy). 22163_ Destroyed Adv. Remote Datajack. 22169_ HV Slug penetrates MAIN.C. 22169_ HV Slug penetrates Reinforced Barrier. 22169_ HV Slug penetrates MAIN.C. 22169_ MAIN.C suffers critical hit (Destroy). 22169_ Destroyed Prototype Device. 22169_ HV Slug penetrates MAIN.C. 22169_ HV Slug penetrates Reinforced Barrier. 22169_ Slug penetrates MAIN.C. 22171_ Destroyed Imp. Antigrav System. 22171_ H-88 Terminator destroyed. 22171_ Destroyed Gamma Rifle. 22171_ P-80 Master destroyed. Map ----- +----------------------------------------------------+ | ????????????????????????????#?######?#####???????? | | ????????????????????????#####?####?#######??#????? | | ?????????????????????##?#?#?############?##??####? | | ?????????????????????#############?###?########### | | ???????????????????############################### | | ??????????????????#?#?####?####################### | | ?????????????????##?####?##########?############## | | ????????????????##################?############### | | ???????????????#?################################# | | ???????????????#?################?################ | | ????????????#?#################################### | | ??????????????#################################### | | ????????????#?#################################### | | ??????????######################################## | | ??????????######################################## | | ????????########################################## | | ??????############################################ | | ???? ##########""""" """" ############# | | ??? ##########"" "" ############# | | ??# ##########""""" ############# | | ?## ##########""""""" / | | ### ##########" " ; | | ? # ##########" "" p % ? | | # ##########"" [ g[ g ############# | | # ########## *[%!! !%[%% ############# | | # ########## " =@M%!%*%=[ ############# | | # ########## = /[*=[%![% ############# | | # ##########"" |!p=%= *! ############# | | # ##########" !%g[ = ############# | | # ########## =! =%! "############# | | ### ########## [* " ############# | | ######### " ############ | | ## "" """ """ " ############# | | ## "T """ " """" ############# | | ## """ = " " " ############# | | ## ######### """"" " ############# | | ################ """ " """"""""############# | | ################ "" " " " ############# | | ################################################## | | ################################################## | | ################################################## | | ##########################?###?######## | | #############################?######### | | #######################?############### | | ########################?#??#?######### | | #######################?????????####### | | ######################????#??????###### | | ? ######################????#????????#### | | ? #####################????????????????## | | ?? ####################????????????????#?# | +----------------------------------------------------+ Best States ------------- Heat Dissipation 117 Coolant Potential 120 Energy Generation 80 Energy Capacity 1000 Matter Stores 900 Matter Capacity 900 Sight Range 23 Robot Scan Range 30 Terrain Scan Range 20 Terrain Scan Density 410 Jamming Range 16 Armor Coverage 625 Resistance: KI 60 Resistance: TH 65 Resistance: EX 85 Resistance: EM 60 Resistance: I 35 Resistance: S 35 Resistance: P 35 Power Shielding 33 Propulsion Shielding 33 Point Defense Rating 240 Weapon Cycling 25 Phase Shifting 15 Evasion (%) 55 Targeting Accuracy 8 Target Analysis 8 Core Analysis 8 Recoil Reduction 4 Offensive Hacking 20 Relay Coupler Types 1 Relay Coupler Value 102 Item Schematics ----------------- Hyp. Railgun | -3/Testing | Scanalyzed Exp. Terrain Scan Processor | -3/Testing | Archive Robot Schematics ------------------ A-15 Conveyor | -3/Testing | Archive A-02 Transporter | -3/Testing | Archive T-07 Excavator | -3/Testing | Archive Fabricated ------------ Adv. Transmission Jammer | x1 | -7/Factory | Preloaded Alien Tech Used ----------------- Transdimensional Reconstructor Integrated Dissipator Core Regenerator LC Capacitor Achievements -------------- None Challenges ------------ None RPGLIKE | -11 -10 -9 -9 -8 -7 -6 -6 -5 -5 -5 -5 -4 -4 -4 -4 -4 -3 -3 -3 -2 -2 -1 -1 --------- Run | Scr Mat Mat Sto Mat Fac Fac Ext Fac Upp Upp War Pro Fac Gar Arm Lab Res Tes Gar Res Qua Acc Com Levels Raised 35 | . . 3 3 3 2 2 2 2 1 . 1 1 1 1 3 . 2 1 1 2 . 2 2 XP Earned 59843 | 6000 900 4232 3935 5265 2645 3192 3203 3405 500 1150 848 1250 1560 2411 3389 1078 1926 2309 994 2606 1026 2630 3389 XP Spent 58440 | 5975 . 4440 4540 4500 2900 1600 4450 2950 . . 3050 . 2750 . 4760 1100 1300 2600 . 5225 . 3200 3100 Upgrades 106 | 29 . 15 7 5 4 3 8 5 . . 2 . 4 . 7 1 2 1 . 4 . 1 8 Power Slot 2 | . . . . . . 1 . . . . . . . . . . . . . . . . 1 Propulsion Slot 3 | 1 . . 1 . . . . . . . . . . . 1 . . . . . . . . Utility Slot 10 | 3 . . 2 1 . . . . . . . . 1 . . . . 1 . 1 . 1 . Weapon Slot 3 | 1 . . . 1 . . . . . . . . . . . 1 . . . . . . . Core Integrity 8 | 8 . . . . . . . . . . . . . . . . . . . . . . . Heat Dissipation 12 | 4 . . 4 . . . . . . . . . . . 4 . . . . . . . . Energy Generation 3 | 1 . . . . 2 . . . . . . . . . . . . . . . . . . Energy Storage 3 | . . . . . . . . . . . . . . . . . . . . . . . 3 Matter Storage 12 | 2 . 2 . . . . 5 . . . . . . . . . . . . 1 . . 2 Mass Support 4 | 1 . . . . . 1 . . . . . . . . 2 . . . . . . . . Inventory Capacity 7 | . . 3 . 1 1 . . 1 . . 1 . . . . . . . . . . . . Sight Range 7 | 2 . . . . . 1 3 . . . 1 . . . . . . . . . . . . Sensor Range 15 | 5 . 5 . . 1 . . 4 . . . . . . . . . . . . . . . Terrain Scan Density 4 | 1 . 3 . . . . . . . . . . . . . . . . . . . . . Ranged Accuracy 4 | . . 2 . . . . . . . . . . . . . . 2 . . . . . . KI Resistance % 1 | . . . . . . . . . . . . . 1 . . . . . . . . . . TH Resistance % 1 | . . . . . . . . . . . . . 1 . . . . . . . . . . EX Resistance % 1 | . . . . . . . . . . . . . 1 . . . . . . . . . . KI Damage % 4 | . . . . 2 . . . . . . . . . . . . . . . 2 . . . TH Damage % 2 | . . . . . . . . . . . . . . . . . . . . . . . 2 Protomatter Created 8848 | . 73 83 415 443 144 149 445 190 . 23 . 45 . 259 1194 . 382 1118 582 571 454 593 1685 Integrity Restored 15616 | . 173 172 636 643 93 841 1459 703 . 65 131 135 . 957 692 528 380 2322 1502 1078 618 1143 1345 Core 10753 | . 156 123 502 414 33 760 1322 368 . 14 78 135 . 665 353 516 175 1895 375 711 448 648 1062 Parts 4863 | . 17 49 134 229 60 81 137 335 . 51 53 . . 292 339 12 205 427 1127 367 170 495 283 Protomatter Decayed 9742 | . 13 . 186 134 104 . 59 . . . 1758 . . . 1280 . 87 719 132 3523 625 194 928 Game ------ Seed HypercooledPointyCharger Manual? 0 Play Time 03:36:10 Cumulative 200.2 hours Start 2022.05.31 @ 21:52:00 End 2022.06.01 @ 01:56:05 Sessions 1 Manual Loads 0 Difficulty Explorer Special Mode Winter2019/RPGLIKE Game No. 63 Rogue 0 Adventurer 1 Explorer 62 Win Type - Total 13 Types 6/0/4/3/0/0/0/0/0 Lore% 83 Gallery% 84 Achievement% 69 Wizard Run 0 Options --------- ASCII 0 Keyboard 1 Movement Numpad Keybinds 0 Fullscreen 0 Font 14/Terminus Map View 76x50 Tactical HUD 1 Map Filters BRIGHTNESS(150) Filters NONE Steam 1 RUN: c9f3d62e-8374-4260-9abf-e49dade9e23b